[Event "Titled Tuesday Blitz November 15 Late 2022"]
[White "Nugumanov, Bakhtiyar"]
[Black "Rodriguez Fontecha, Marcos"]
[WhiteFideId "13701797"]
[BlackFideId "2256576"]
[WhiteElo "2287"]
[BlackElo "2263"]
[Result "1-0"]
[Round "08"]
[TimeControl "180+1"]
[Date "2022.11.16"]
[WhiteClock "0:01:06"]
[BlackClock "0:00:47"]

1. b3 {[%clk 0:02:56]}  e5 {[%clk 0:02:58]} 2. Bb2 {[%clk 0:02:56]}  Nc6 {[%clk 0:02:59]} 3. e3 {[%clk 0:02:57]}  Bd6 {[%clk 0:02:58]} 4. Qg4 {[%clk 0:02:41]}  Bf8 {[%clk 0:02:49]} 5. Qg3 {[%clk 0:02:32]}  d6 {[%clk 0:02:45]} 6. Bb5 {[%clk 0:02:21]}  Bd7 {[%clk 0:02:43]} 7. Nf3 {[%clk 0:02:15]}  Nf6 {[%clk 0:02:40]} 8. d3 {[%clk 0:01:57]}  Nh5 {[%clk 0:02:23]} 9. Qg5 {[%clk 0:01:49]}  Qxg5 {[%clk 0:02:21]} 10. Nxg5 {[%clk 0:01:50]}  Be7 {[%clk 0:02:21]} 11. Nf3 {[%clk 0:01:48]}  f5 {[%clk 0:02:14]} 12. Nbd2 {[%clk 0:01:47]}  Nf6 {[%clk 0:02:13]} 13. O-O {[%clk 0:01:38]}  a6 {[%clk 0:02:11]} 14. Bxc6 {[%clk 0:01:36]}  Bxc6 {[%clk 0:02:09]} 15. Rfe1 {[%clk 0:01:33]}  b5 {[%clk 0:02:03]} 16. e4 {[%clk 0:01:32]}  fxe4 {[%clk 0:01:59]} 17. dxe4 {[%clk 0:01:31]}  Kd7 {[%clk 0:01:56]} 18. a3 {[%clk 0:01:29]}  Bb7 {[%clk 0:01:53]} 19. Rad1 {[%clk 0:01:28]}  h6 {[%clk 0:01:28]} 20. Nf1 {[%clk 0:01:26]}  Nxe4 {[%clk 0:01:22]} 21. Nxe5+ {[%clk 0:01:22]}  Kc8 {[%clk 0:01:17]} 22. Ng6 {[%clk 0:01:17]}  Re8 {[%clk 0:01:06]} 23. Nxe7+ {[%clk 0:01:15]}  Rxe7 {[%clk 0:01:06]} 24. f3 {[%clk 0:01:15]}  d5 {[%clk 0:01:04]} 25. fxe4 {[%clk 0:01:15]}  dxe4 {[%clk 0:01:04]} 26. Ne3 {[%clk 0:01:16]}  Bc6 {[%clk 0:00:57]} 27. Nf5 {[%clk 0:01:13]}  Re8 {[%clk 0:00:55]} 28. Nxg7 {[%clk 0:01:11]}  Rg8 {[%clk 0:00:55]} 29. Nf5 {[%clk 0:01:05]}  Rg5 {[%clk 0:00:52]} 30. Ne7+ {[%clk 0:01:04]}  Kb7 {[%clk 0:00:47]} 31. Nxc6 {[%clk 0:01:05]}  Kxc6 {[%clk 0:00:47]} 32. Rxe4 {[%clk 0:01:06]} 1-0


[Site "https://www.chess.com"]

[Event "Titled Tuesday Blitz November 15 Late 2022"]
[White "Papayan, Oleg"]
[Black "Martinez Reyes, Pedro Ramon"]
[WhiteFideId "4193911"]
[BlackFideId "3901807"]
[WhiteElo "2153"]
[BlackElo "2354"]
[Result "1-0"]
[Round "08"]
[TimeControl "180+1"]
[Date "2022.11.16"]
[WhiteClock "0:00:13"]
[BlackClock "0:00:21"]

1. e4 {[%clk 0:03:00]}  c6 {[%clk 0:02:08]} 2. Nf3 {[%clk 0:02:58]}  d5 {[%clk 0:02:08]} 3. Nc3 {[%clk 0:02:58]}  Nf6 {[%clk 0:02:06]} 4. e5 {[%clk 0:02:47]}  Ne4 {[%clk 0:02:05]} 5. Bd3 {[%clk 0:02:38]}  Nxc3 {[%clk 0:02:02]} 6. dxc3 {[%clk 0:02:39]}  Bg4 {[%clk 0:02:01]} 7. h3 {[%clk 0:02:38]}  Bxf3 {[%clk 0:02:00]} 8. Qxf3 {[%clk 0:02:38]}  e6 {[%clk 0:02:01]} 9. Qg3 {[%clk 0:02:35]}  Nd7 {[%clk 0:01:56]} 10. O-O {[%clk 0:02:32]}  g6 {[%clk 0:01:43]} 11. Bg5 {[%clk 0:02:04]}  Qc7 {[%clk 0:01:36]} 12. Rfe1 {[%clk 0:01:59]}  Bg7 {[%clk 0:01:35]} 13. f4 {[%clk 0:01:47]}  O-O {[%clk 0:01:25]} 14. Qh4 {[%clk 0:01:33]}  Rab8 {[%clk 0:01:19]} 15. Be7 {[%clk 0:01:32]}  Qb6+ {[%clk 0:01:16]} 16. Qf2 {[%clk 0:01:05]}  Rfe8 {[%clk 0:01:14]} 17. Bd6 {[%clk 0:01:03]}  Rbc8 {[%clk 0:01:14]} 18. b4 {[%clk 0:00:55]}  Bf8 {[%clk 0:01:11]} 19. Bxf8 {[%clk 0:00:45]}  Qxf2+ {[%clk 0:01:11]} 20. Kxf2 {[%clk 0:00:45]}  Kxf8 {[%clk 0:01:11]} 21. a4 {[%clk 0:00:40]}  c5 {[%clk 0:01:10]} 22. Bb5 {[%clk 0:00:39]}  Ke7 {[%clk 0:01:10]} 23. Bxd7 {[%clk 0:00:29]}  Kxd7 {[%clk 0:01:10]} 24. b5 {[%clk 0:00:30]}  Ra8 {[%clk 0:01:06]} 25. Ke3 {[%clk 0:00:21]}  a6 {[%clk 0:01:06]} 26. Kd3 {[%clk 0:00:17]}  axb5 {[%clk 0:01:06]} 27. axb5 {[%clk 0:00:18]}  Kc7 {[%clk 0:01:03]} 28. c4 {[%clk 0:00:17]}  dxc4+ {[%clk 0:01:03]} 29. Kxc4 {[%clk 0:00:17]}  Kb6 {[%clk 0:01:04]} 30. Red1 {[%clk 0:00:12]}  Red8 {[%clk 0:01:04]} 31. Rxa8 {[%clk 0:00:03]}  Rxd1 {[%clk 0:01:03]} 32. c3 {[%clk 0:00:03]}  Rf1 {[%clk 0:01:00]} 33. g3 {[%clk 0:00:04]}  Rf3 {[%clk 0:00:59]} 34. Rf8 {[%clk 0:00:04]}  Rxg3 {[%clk 0:00:56]} 35. Rxf7 {[%clk 0:00:04]}  Rf3 {[%clk 0:00:57]} 36. Rf6 {[%clk 0:00:03]}  Ka5 {[%clk 0:00:58]} 37. Kxc5 {[%clk 0:00:02]}  b6+ {[%clk 0:00:54]} 38. Kd6 {[%clk 0:00:01]}  Rxc3 {[%clk 0:00:55]} 39. Kxe6 {[%clk 0:00:02]}  Kxb5 {[%clk 0:00:56]} 40. Kf7 {[%clk 0:00:02]}  Rc7+ {[%clk 0:00:54]} 41. Kg8 {[%clk 0:00:02]}  Kc5 {[%clk 0:00:53]} 42. e6 {[%clk 0:00:03]}  Kd6 {[%clk 0:00:54]} 43. e7+ {[%clk 0:00:02]}  Kxe7 {[%clk 0:00:51]} 44. Rxb6 {[%clk 0:00:02]}  Rc3 {[%clk 0:00:14]} 45. Kxh7 {[%clk 0:00:02]}  Rg3 {[%clk 0:00:15]} 46. Kh6 {[%clk 0:00:02]}  Kf7 {[%clk 0:00:14]} 47. Rb7+ {[%clk 0:00:02]}  Kf6 {[%clk 0:00:15]} 48. Rb6+ {[%clk 0:00:03]}  Kf5 {[%clk 0:00:15]} 49. Rc6 {[%clk 0:00:03]}  Rxh3+ {[%clk 0:00:15]} 50. Kg7 {[%clk 0:00:03]}  Rg3 {[%clk 0:00:15]} 51. Rf6+ {[%clk 0:00:04]}  Ke4 {[%clk 0:00:13]} 52. Rxg6 {[%clk 0:00:05]}  Ra3 {[%clk 0:00:12]} 53. f5 {[%clk 0:00:05]}  Kxf5 {[%clk 0:00:12]} 54. Rf6+ {[%clk 0:00:05]}  Kg5 {[%clk 0:00:12]} 55. Rc6 {[%clk 0:00:05]}  Ra7+ {[%clk 0:00:12]} 56. Kf8 {[%clk 0:00:05]}  Kf5 {[%clk 0:00:13]} 57. Ke8 {[%clk 0:00:06]}  Ke5 {[%clk 0:00:13]} 58. Rh6 {[%clk 0:00:07]}  Kd5 {[%clk 0:00:14]} 59. Kd8 {[%clk 0:00:07]}  Rg7 {[%clk 0:00:13]} 60. Ke8 {[%clk 0:00:07]}  Kc5 {[%clk 0:00:14]} 61. Kf8 {[%clk 0:00:08]}  Rc7 {[%clk 0:00:14]} 62. Kg8 {[%clk 0:00:08]}  Ra7 {[%clk 0:00:14]} 63. Kf8 {[%clk 0:00:09]}  Kd5 {[%clk 0:00:14]} 64. Kg8 {[%clk 0:00:09]}  Ke5 {[%clk 0:00:15]} 65. Kf8 {[%clk 0:00:10]}  Kf5 {[%clk 0:00:16]} 66. Kg8 {[%clk 0:00:10]}  Ra8+ {[%clk 0:00:16]} 67. Kf7 {[%clk 0:00:09]}  Kg5 {[%clk 0:00:17]} 68. Rb6 {[%clk 0:00:09]}  Ra7+ {[%clk 0:00:18]} 69. Ke8 {[%clk 0:00:10]}  Rh7 {[%clk 0:00:18]} 70. Kd8 {[%clk 0:00:10]}  Rh8+ {[%clk 0:00:18]} 71. Kc7 {[%clk 0:00:10]}  Kf5 {[%clk 0:00:19]} 72. Rb5+ {[%clk 0:00:10]}  Ke6 {[%clk 0:00:19]} 73. Rb1 {[%clk 0:00:09]}  Rh7+ {[%clk 0:00:19]} 74. Kc6 {[%clk 0:00:10]}  Rh2 {[%clk 0:00:19]} 75. Re1+ {[%clk 0:00:10]}  Kf7 {[%clk 0:00:20]} 76. Kd6 {[%clk 0:00:11]}  Rd2+ {[%clk 0:00:20]} 77. Ke5 {[%clk 0:00:10]}  Rd8 {[%clk 0:00:20]} 78. Rf1+ {[%clk 0:00:10]}  Ke7 {[%clk 0:00:21]} 79. Rh1 {[%clk 0:00:10]}  Ra8 {[%clk 0:00:20]} 80. Rh7+ {[%clk 0:00:10]}  Kd8 {[%clk 0:00:20]} 81. Rh8+ {[%clk 0:00:11]}  Kc7 {[%clk 0:00:21]} 82. Rxa8 {[%clk 0:00:12]}  Kb7 {[%clk 0:00:21]} 83. Ra1 {[%clk 0:00:13]} 1-0


[Site "https://www.chess.com"]

[Event "Titled Tuesday Blitz November 15 Late 2022"]
[White "Rodriguez Santiago, Jaime"]
[Black "Marcolino, Daniel Mattos"]
[WhiteFideId "3100898"]
[BlackFideId "2106841"]
[WhiteElo "2025"]
[BlackElo "2085"]
[Result "0-1"]
[Round "08"]
[TimeControl "180+1"]
[Date "2022.11.16"]
[WhiteClock "0:00:35"]
[BlackClock "0:00:10"]

1. c4 {[%clk 0:03:00]}  e6 {[%clk 0:02:59]} 2. e4 {[%clk 0:02:59]}  d5 {[%clk 0:02:58]} 3. exd5 {[%clk 0:03:00]}  exd5 {[%clk 0:02:59]} 4. cxd5 {[%clk 0:03:00]}  Nf6 {[%clk 0:02:59]} 5. Nc3 {[%clk 0:03:01]}  Nxd5 {[%clk 0:02:59]} 6. Bc4 {[%clk 0:03:00]}  Nf6 {[%clk 0:02:35]} 7. Nge2 {[%clk 0:02:57]}  Bd6 {[%clk 0:02:17]} 8. h3 {[%clk 0:02:41]}  c6 {[%clk 0:02:13]} 9. d4 {[%clk 0:02:38]}  Bf5 {[%clk 0:02:05]} 10. Bg5 {[%clk 0:02:34]}  Nbd7 {[%clk 0:02:03]} 11. O-O {[%clk 0:02:30]}  Qb6 {[%clk 0:01:45]} 12. b3 {[%clk 0:02:19]}  O-O {[%clk 0:01:44]} 13. Kh1 {[%clk 0:01:58]}  h6 {[%clk 0:01:44]} 14. Bf4 {[%clk 0:01:56]}  Qc7 {[%clk 0:01:40]} 15. Bxd6 {[%clk 0:01:55]}  Qxd6 {[%clk 0:01:41]} 16. Ng3 {[%clk 0:01:54]}  Bg6 {[%clk 0:01:40]} 17. f4 {[%clk 0:01:53]}  Nb6 {[%clk 0:01:35]} 18. Qd2 {[%clk 0:01:28]}  Rad8 {[%clk 0:01:33]} 19. Rad1 {[%clk 0:01:27]}  Nxc4 {[%clk 0:01:08]} 20. bxc4 {[%clk 0:01:25]}  Qb4 {[%clk 0:01:09]} 21. f5 {[%clk 0:01:12]}  Bh7 {[%clk 0:01:05]} 22. Qd3 {[%clk 0:00:57]}  Rfe8 {[%clk 0:01:05]} 23. Rb1 {[%clk 0:00:54]}  Qd6 {[%clk 0:01:02]} 24. Nge4 {[%clk 0:00:52]}  Nxe4 {[%clk 0:01:02]} 25. Nxe4 {[%clk 0:00:53]}  Qxd4 {[%clk 0:01:03]} 26. Qxd4 {[%clk 0:00:52]}  Rxd4 {[%clk 0:01:02]} 27. Nc5 {[%clk 0:00:46]}  b6 {[%clk 0:00:56]} 28. Nb3 {[%clk 0:00:45]}  Rxc4 {[%clk 0:00:55]} 29. Rbd1 {[%clk 0:00:44]}  Rce4 {[%clk 0:00:41]} 30. Rd7 {[%clk 0:00:39]}  R4e7 {[%clk 0:00:40]} 31. Rd6 {[%clk 0:00:37]}  c5 {[%clk 0:00:39]} 32. a4 {[%clk 0:00:36]}  Re5 {[%clk 0:00:37]} 33. a5 {[%clk 0:00:35]}  Rxf5 {[%clk 0:00:36]} 34. Rfd1 {[%clk 0:00:34]}  c4 {[%clk 0:00:30]} 35. Nd4 {[%clk 0:00:33]}  Rxa5 {[%clk 0:00:29]} 36. Nc6 {[%clk 0:00:33]}  Ra2 {[%clk 0:00:25]} 37. Rd8 {[%clk 0:00:32]}  Re2 {[%clk 0:00:21]} 38. Nxa7 {[%clk 0:00:28]}  Bd3 {[%clk 0:00:18]} 39. Rxe8+ {[%clk 0:00:27]}  Rxe8 {[%clk 0:00:19]} 40. Nb5 {[%clk 0:00:27]}  Rc8 {[%clk 0:00:14]} 41. Nc3 {[%clk 0:00:26]}  Rc5 {[%clk 0:00:13]} 42. Ra1 {[%clk 0:00:25]}  b5 {[%clk 0:00:12]} 43. Ra5 {[%clk 0:00:25]}  Kf8 {[%clk 0:00:11]} 44. Rxb5 {[%clk 0:00:24]}  Rxb5 {[%clk 0:00:10]} 45. Nxb5 {[%clk 0:00:25]}  Ke7 {[%clk 0:00:09]} 46. Nc3 {[%clk 0:00:25]}  Kd6 {[%clk 0:00:10]} 47. Kg1 {[%clk 0:00:26]}  Ke5 {[%clk 0:00:09]} 48. Kf2 {[%clk 0:00:26]}  Kd4 {[%clk 0:00:10]} 49. Nd1 {[%clk 0:00:26]}  c3 {[%clk 0:00:10]} 50. Ne3 {[%clk 0:00:25]}  c2 {[%clk 0:00:10]} 51. Nxc2+ {[%clk 0:00:25]}  Bxc2 {[%clk 0:00:10]} 52. Kg3 {[%clk 0:00:26]}  Ke4 {[%clk 0:00:10]} 53. Kh4 {[%clk 0:00:27]}  Kf5 {[%clk 0:00:10]} 54. g4+ {[%clk 0:00:27]}  Kg6 {[%clk 0:00:10]} 55. Kg3 {[%clk 0:00:28]}  Kg5 {[%clk 0:00:09]} 56. h4+ {[%clk 0:00:29]}  Kg6 {[%clk 0:00:09]} 57. h5+ {[%clk 0:00:30]}  Kg5 {[%clk 0:00:09]} 58. Kf3 {[%clk 0:00:31]}  Bd1+ {[%clk 0:00:10]} 59. Ke3 {[%clk 0:00:32]}  Bxg4 {[%clk 0:00:10]} 60. Kf2 {[%clk 0:00:32]}  Bxh5 {[%clk 0:00:11]} 61. Kg3 {[%clk 0:00:32]}  Bg6 {[%clk 0:00:11]} 62. Kh2 {[%clk 0:00:33]}  f5 {[%clk 0:00:11]} 63. Kh1 {[%clk 0:00:34]}  f4 {[%clk 0:00:12]} 64. Kh2 {[%clk 0:00:34]}  Kg4 {[%clk 0:00:12]} 65. Kh1 {[%clk 0:00:35]}  Kg3 {[%clk 0:00:12]} 66. Kg1 {[%clk 0:00:36]}  f3 {[%clk 0:00:10]} 67. Kh1 {[%clk 0:00:35]}  Be4 {[%clk 0:00:10]} 68. Kg1 {[%clk 0:00:35]}  f2+ {[%clk 0:00:10]} 69. Kf1 {[%clk 0:00:35]}  Bg2+ {[%clk 0:00:10]} 0-1


[Site "https://www.chess.com"]

[Event "Titled Tuesday Blitz November 15 Late 2022"]
[White "Sanchez, Robert"]
[Black "Joubert, Dantelle"]
[WhiteFideId "2034360"]
[BlackFideId "14310813"]
[WhiteElo "2320"]
[BlackElo "1507"]
[Result "0-1"]
[Round "08"]
[TimeControl "180+1"]
[Date "2022.11.16"]
[WhiteClock "0:00:03"]
[BlackClock "0:00:06"]

1. e4 {[%clk 0:03:00]}  e5 {[%clk 0:02:58]} 2. Nf3 {[%clk 0:02:59]}  Nc6 {[%clk 0:02:58]} 3. Bb5 {[%clk 0:02:59]}  Nf6 {[%clk 0:02:57]} 4. d3 {[%clk 0:02:58]}  Bc5 {[%clk 0:02:55]} 5. Nc3 {[%clk 0:02:58]}  h6 {[%clk 0:02:45]} 6. h3 {[%clk 0:02:56]}  O-O {[%clk 0:02:42]} 7. a3 {[%clk 0:02:52]}  d5 {[%clk 0:02:40]} 8. exd5 {[%clk 0:02:48]}  Nxd5 {[%clk 0:02:39]} 9. Ne4 {[%clk 0:02:48]}  Bb6 {[%clk 0:02:26]} 10. Bxc6 {[%clk 0:02:37]}  bxc6 {[%clk 0:02:24]} 11. O-O {[%clk 0:02:30]}  f5 {[%clk 0:02:22]} 12. Ned2 {[%clk 0:02:26]}  Qf6 {[%clk 0:02:20]} 13. Nc4 {[%clk 0:02:23]}  e4 {[%clk 0:02:12]} 14. Nxb6 {[%clk 0:02:03]}  cxb6 {[%clk 0:01:58]} 15. Nh2 {[%clk 0:01:57]}  exd3 {[%clk 0:01:17]} 16. Qxd3 {[%clk 0:01:55]}  Bb7 {[%clk 0:01:17]} 17. c4 {[%clk 0:01:52]}  Ba6 {[%clk 0:01:14]} 18. Qc2 {[%clk 0:01:40]}  Ne7 {[%clk 0:01:07]} 19. Rb1 {[%clk 0:01:31]}  Ng6 {[%clk 0:00:58]} 20. Nf3 {[%clk 0:01:28]}  Rad8 {[%clk 0:00:56]} 21. b3 {[%clk 0:01:24]}  Rfe8 {[%clk 0:00:53]} 22. Bb2 {[%clk 0:01:22]}  Qf7 {[%clk 0:00:52]} 23. Nd4 {[%clk 0:01:04]}  Re4 {[%clk 0:00:45]} 24. Nxc6 {[%clk 0:00:39]}  Rde8 {[%clk 0:00:38]} 25. Rbd1 {[%clk 0:00:29]}  Nf4 {[%clk 0:00:38]} 26. Nb4 {[%clk 0:00:20]}  Qg6 {[%clk 0:00:34]} 27. g3 {[%clk 0:00:20]}  Bb7 {[%clk 0:00:34]} 28. Nd5 {[%clk 0:00:19]}  Nxh3+ {[%clk 0:00:29]} 29. Kh2 {[%clk 0:00:18]}  Ng5 {[%clk 0:00:29]} 30. Qc3 {[%clk 0:00:17]}  Qh5+ {[%clk 0:00:29]} 31. Kg2 {[%clk 0:00:17]}  Qh3+ {[%clk 0:00:28]} 32. Kg1 {[%clk 0:00:17]}  Ne6 {[%clk 0:00:19]} 33. Rde1 {[%clk 0:00:13]}  Rf8 {[%clk 0:00:15]} 34. Rxe4 {[%clk 0:00:09]}  fxe4 {[%clk 0:00:15]} 35. Nc7 {[%clk 0:00:07]}  Rf7 {[%clk 0:00:13]} 36. Nxe6 {[%clk 0:00:07]}  Qxe6 {[%clk 0:00:14]} 37. Qe3 {[%clk 0:00:07]}  Qh3 {[%clk 0:00:12]} 38. Re1 {[%clk 0:00:07]}  Rf3 {[%clk 0:00:11]} 39. Qd4 {[%clk 0:00:07]}  Rf7 {[%clk 0:00:10]} 40. Qe3 {[%clk 0:00:07]}  Kh7 {[%clk 0:00:10]} 41. Be5 {[%clk 0:00:06]}  Rf3 {[%clk 0:00:10]} 42. Qd4 {[%clk 0:00:06]}  e3 {[%clk 0:00:10]} 43. Qd3+ {[%clk 0:00:06]}  Rf5 {[%clk 0:00:07]} 44. Qf1 {[%clk 0:00:03]}  Qh1# {[%clk 0:00:06]} 0-1


[Site "https://www.chess.com"]

[Event "Titled Tuesday Blitz November 15 Late 2022"]
[White "Sariego Figueredo, Wilfredo"]
[Black "Bazzano, Sebastian"]
[WhiteFideId "3500080"]
[BlackFideId "104566"]
[WhiteElo "2309"]
[BlackElo "2260"]
[Result "1-0"]
[Round "08"]
[TimeControl "180+1"]
[Date "2022.11.16"]
[WhiteClock "0:01:25"]
[BlackClock "0:00:01"]

1. d4 {[%clk 0:03:00]}  Nf6 {[%clk 0:02:58]} 2. Bf4 {[%clk 0:03:00]}  d5 {[%clk 0:02:57]} 3. e3 {[%clk 0:03:00]}  e6 {[%clk 0:02:57]} 4. Bd3 {[%clk 0:03:00]}  Bd6 {[%clk 0:02:58]} 5. Bg3 {[%clk 0:03:00]}  O-O {[%clk 0:02:56]} 6. Nf3 {[%clk 0:03:00]}  c5 {[%clk 0:02:56]} 7. c3 {[%clk 0:03:00]}  Nc6 {[%clk 0:02:56]} 8. Ne5 {[%clk 0:02:56]}  Qc7 {[%clk 0:02:49]} 9. f4 {[%clk 0:02:55]}  b6 {[%clk 0:02:48]} 10. O-O {[%clk 0:02:52]}  Bb7 {[%clk 0:02:48]} 11. Nd2 {[%clk 0:02:51]}  Ne7 {[%clk 0:02:36]} 12. Bh4 {[%clk 0:02:50]}  Ne4 {[%clk 0:02:23]} 13. Bxe7 {[%clk 0:02:42]}  Qxe7 {[%clk 0:02:17]} 14. Bxe4 {[%clk 0:02:39]}  dxe4 {[%clk 0:02:16]} 15. Ndc4 {[%clk 0:02:35]}  Ba6 {[%clk 0:01:21]} 16. b3 {[%clk 0:02:33]}  Bxe5 {[%clk 0:01:18]} 17. fxe5 {[%clk 0:02:33]}  Bxc4 {[%clk 0:00:34]} 18. bxc4 {[%clk 0:02:32]}  f5 {[%clk 0:00:34]} 19. exf6 {[%clk 0:02:25]}  Rxf6 {[%clk 0:00:34]} 20. Qg4 {[%clk 0:02:21]}  Raf8 {[%clk 0:00:26]} 21. Qxe4 {[%clk 0:02:20]}  cxd4 {[%clk 0:00:24]} 22. cxd4 {[%clk 0:02:20]}  Qf7 {[%clk 0:00:17]} 23. Qd3 {[%clk 0:02:15]}  Qh5 {[%clk 0:00:14]} 24. Rxf6 {[%clk 0:02:12]}  Rxf6 {[%clk 0:00:14]} 25. Rd1 {[%clk 0:02:08]}  Qh4 {[%clk 0:00:12]} 26. Qd2 {[%clk 0:02:00]}  Rh6 {[%clk 0:00:11]} 27. g3 {[%clk 0:01:55]}  Qg4 {[%clk 0:00:11]} 28. d5 {[%clk 0:01:53]}  Rf6 {[%clk 0:00:01]} 29. d6 {[%clk 0:01:50]}  Rf8 {[%clk 0:00:01]} 30. d7 {[%clk 0:01:44]}  Rd8 {[%clk 0:00:01]} 31. Qd4 {[%clk 0:01:43]}  Qf3 {[%clk 0:00:01]} 32. Rd3 {[%clk 0:01:27]}  h6 {[%clk 0:00:01]} 33. e4 {[%clk 0:01:25]} 1-0


[Site "https://www.chess.com"]

[Event "Titled Tuesday Blitz November 15 Late 2022"]
[White "Sattarov, Bobir"]
[Black "Shimanov, Aleksandr"]
[WhiteFideId "14203081"]
[BlackFideId "4198603"]
[WhiteElo "2354"]
[BlackElo "2605"]
[Result "1/2-1/2"]
[Round "08"]
[TimeControl "180+1"]
[Date "2022.11.15"]
[WhiteClock "0:00:04"]
[BlackClock "0:00:03"]

1. e4 {[%clk 0:03:00]}  d5 {[%clk 0:02:59]} 2. exd5 {[%clk 0:03:00]}  Qxd5 {[%clk 0:03:00]} 3. Nc3 {[%clk 0:03:00]}  Qe5+ {[%clk 0:03:01]} 4. Nge2 {[%clk 0:02:55]}  Nf6 {[%clk 0:03:00]} 5. d4 {[%clk 0:02:51]}  Qa5 {[%clk 0:03:00]} 6. h3 {[%clk 0:02:50]}  h5 {[%clk 0:02:47]} 7. g3 {[%clk 0:02:47]}  Bf5 {[%clk 0:02:46]} 8. Bg2 {[%clk 0:02:44]}  c6 {[%clk 0:02:46]} 9. a3 {[%clk 0:02:40]}  e6 {[%clk 0:02:44]} 10. Bf4 {[%clk 0:02:36]}  Nbd7 {[%clk 0:02:37]} 11. b4 {[%clk 0:02:28]}  Qd8 {[%clk 0:02:38]} 12. O-O {[%clk 0:02:28]}  Be7 {[%clk 0:02:37]} 13. Re1 {[%clk 0:02:25]}  Nd5 {[%clk 0:02:36]} 14. Qd2 {[%clk 0:02:20]}  N7b6 {[%clk 0:02:35]} 15. Nxd5 {[%clk 0:02:16]}  cxd5 {[%clk 0:02:36]} 16. c3 {[%clk 0:02:10]}  Nc4 {[%clk 0:02:36]} 17. Qc1 {[%clk 0:02:08]}  a5 {[%clk 0:02:31]} 18. Kh2 {[%clk 0:02:04]}  Rc8 {[%clk 0:02:25]} 19. Ng1 {[%clk 0:02:03]}  g5 {[%clk 0:02:12]} 20. Be3 {[%clk 0:01:58]}  g4 {[%clk 0:02:13]} 21. Bf4 {[%clk 0:01:52]}  h4 {[%clk 0:02:09]} 22. Ra2 {[%clk 0:01:48]}  a4 {[%clk 0:02:00]} 23. Rae2 {[%clk 0:01:39]}  Bf6 {[%clk 0:01:48]} 24. Be5 {[%clk 0:01:06]}  Bxe5 {[%clk 0:01:47]} 25. dxe5 {[%clk 0:00:58]}  Kd7 {[%clk 0:01:43]} 26. Qd1 {[%clk 0:00:54]}  Kc7 {[%clk 0:01:40]} 27. Qxa4 {[%clk 0:00:53]}  gxh3 {[%clk 0:01:30]} 28. Bh1 {[%clk 0:00:50]}  hxg3+ {[%clk 0:01:27]} 29. fxg3 {[%clk 0:00:51]}  Qg5 {[%clk 0:01:23]} 30. Nf3 {[%clk 0:00:48]}  Qg4 {[%clk 0:01:09]} 31. Qb5 {[%clk 0:00:46]}  Rcg8 {[%clk 0:01:03]} 32. Rg1 {[%clk 0:00:45]}  Kb8 {[%clk 0:01:00]} 33. Qc5 {[%clk 0:00:42]}  Be4 {[%clk 0:00:59]} 34. Rf2 {[%clk 0:00:40]}  Rc8 {[%clk 0:00:53]} 35. Qd4 {[%clk 0:00:40]}  Rhg8 {[%clk 0:00:45]} 36. Nh4 {[%clk 0:00:38]}  Rc7 {[%clk 0:00:21]} 37. a4 {[%clk 0:00:35]}  Rgc8 {[%clk 0:00:18]} 38. a5 {[%clk 0:00:29]}  Qg7 {[%clk 0:00:16]} 39. Rf6 {[%clk 0:00:20]}  Bxh1 {[%clk 0:00:12]} 40. Kxh1 {[%clk 0:00:20]}  Rc6 {[%clk 0:00:09]} 41. Kh2 {[%clk 0:00:18]}  Na3 {[%clk 0:00:09]} 42. Rgf1 {[%clk 0:00:17]}  R8c7 {[%clk 0:00:09]} 43. R1f3 {[%clk 0:00:16]}  Nb5 {[%clk 0:00:09]} 44. Qf4 {[%clk 0:00:14]}  Nxc3 {[%clk 0:00:09]} 45. Rxf7 {[%clk 0:00:14]}  Rxf7 {[%clk 0:00:09]} 46. Qxf7 {[%clk 0:00:14]}  Qxe5 {[%clk 0:00:09]} 47. Qg8+ {[%clk 0:00:11]}  Ka7 {[%clk 0:00:09]} 48. Rf8 {[%clk 0:00:11]}  Ka6 {[%clk 0:00:07]} 49. Nf3 {[%clk 0:00:08]}  Qe2+ {[%clk 0:00:05]} 50. Kxh3 {[%clk 0:00:08]}  Qe4 {[%clk 0:00:03]} 51. Rf4 {[%clk 0:00:06]}  Qe3 {[%clk 0:00:03]} 52. Qa8+ {[%clk 0:00:05]}  Kb5 {[%clk 0:00:03]} 53. Nd4+ {[%clk 0:00:05]}  Ka4 {[%clk 0:00:04]} 54. Nxc6 {[%clk 0:00:05]}  Ne2 {[%clk 0:00:04]} 55. Rg4 {[%clk 0:00:05]}  Qf3 {[%clk 0:00:04]} 56. Kh4 {[%clk 0:00:05]}  Qf6+ {[%clk 0:00:04]} 57. Rg5 {[%clk 0:00:05]}  Ng1 {[%clk 0:00:03]} 58. Ne5 {[%clk 0:00:03]}  Qe7 {[%clk 0:00:02]} 59. Qb8 {[%clk 0:00:03]}  Qh7+ {[%clk 0:00:02]} 60. Kg4 {[%clk 0:00:03]}  Qe4+ {[%clk 0:00:02]} 61. Kh5 {[%clk 0:00:03]}  Qh7+ {[%clk 0:00:02]} 62. Kg4 {[%clk 0:00:03]}  Qe4+ {[%clk 0:00:03]} 63. Kh5 {[%clk 0:00:03]}  Qh7+ {[%clk 0:00:03]} 64. Kg4 {[%clk 0:00:04]} 1/2-1/2


[Site "https://www.chess.com"]

[Event "Titled Tuesday Blitz November 15 Late 2022"]
[White "Saveliev, Alexei"]
[Black "Timmermans, Mark"]
[WhiteFideId "24128546"]
[BlackFideId "1026399"]
[WhiteElo "2559"]
[BlackElo "2679"]
[Result "0-1"]
[Round "08"]
[TimeControl "180+1"]
[Date "2022.11.16"]
[WhiteClock "0:00:02"]
[BlackClock "0:00:36"]

1. c4 {[%clk 0:02:52]}  Nf6 {[%clk 0:02:59]} 2. Nc3 {[%clk 0:02:51]}  e5 {[%clk 0:02:58]} 3. Nf3 {[%clk 0:02:50]}  e4 {[%clk 0:02:58]} 4. Ng5 {[%clk 0:02:50]}  b5 {[%clk 0:02:59]} 5. Ngxe4 {[%clk 0:02:48]}  Nxe4 {[%clk 0:02:58]} 6. Nxe4 {[%clk 0:02:49]}  bxc4 {[%clk 0:02:58]} 7. d4 {[%clk 0:02:48]}  d5 {[%clk 0:02:56]} 8. Nc3 {[%clk 0:02:48]}  Be7 {[%clk 0:02:51]} 9. e4 {[%clk 0:02:46]}  c6 {[%clk 0:02:52]} 10. Be2 {[%clk 0:02:43]}  O-O {[%clk 0:02:51]} 11. O-O {[%clk 0:02:43]}  Be6 {[%clk 0:02:38]} 12. e5 {[%clk 0:02:41]}  f5 {[%clk 0:02:35]} 13. b3 {[%clk 0:02:36]}  cxb3 {[%clk 0:02:34]} 14. Qxb3 {[%clk 0:02:25]}  Nd7 {[%clk 0:02:35]} 15. Ba3 {[%clk 0:02:17]}  c5 {[%clk 0:02:02]} 16. dxc5 {[%clk 0:02:04]}  Nxc5 {[%clk 0:02:03]} 17. Bxc5 {[%clk 0:01:57]}  Bxc5 {[%clk 0:02:04]} 18. Rad1 {[%clk 0:01:55]}  Rb8 {[%clk 0:02:01]} 19. Qa4 {[%clk 0:01:51]}  d4 {[%clk 0:01:59]} 20. Nb5 {[%clk 0:01:46]}  Qd7 {[%clk 0:01:40]} 21. Qa5 {[%clk 0:01:30]}  Rfd8 {[%clk 0:01:24]} 22. Nd6 {[%clk 0:01:15]}  Bxd6 {[%clk 0:01:24]} 23. exd6 {[%clk 0:01:15]}  Qxd6 {[%clk 0:01:24]} 24. Qxa7 {[%clk 0:01:08]}  Ra8 {[%clk 0:01:23]} 25. Qb7 {[%clk 0:01:07]}  Rxa2 {[%clk 0:01:22]} 26. Bd3 {[%clk 0:01:00]}  Bd5 {[%clk 0:01:13]} 27. Qb1 {[%clk 0:00:59]}  Qg6 {[%clk 0:01:12]} 28. g3 {[%clk 0:00:54]}  Qg4 {[%clk 0:01:05]} 29. Qb6 {[%clk 0:00:20]}  Rda8 {[%clk 0:00:50]} 30. Bc4 {[%clk 0:00:17]}  Bxc4 {[%clk 0:00:44]} 31. Rxd4 {[%clk 0:00:17]}  Qe2 {[%clk 0:00:43]} 32. Rd8+ {[%clk 0:00:10]}  Rxd8 {[%clk 0:00:40]} 33. Qxd8+ {[%clk 0:00:11]}  Kf7 {[%clk 0:00:41]} 34. Qd7+ {[%clk 0:00:09]}  Kg6 {[%clk 0:00:40]} 35. Qc6+ {[%clk 0:00:03]}  Kh5 {[%clk 0:00:40]} 36. g4+ {[%clk 0:00:01]}  Qxg4+ {[%clk 0:00:39]} 37. Kh1 {[%clk 0:00:02]}  Bxf1 {[%clk 0:00:36]} 0-1


[Site "https://www.chess.com"]